fUSD/lending_fUSD_20241111
["ID","MTS","AMOUNT","RATE_DAILY","PERIOD"]
[341935935,1731313843154,-631.83,0.00014795,2]
[341935936,1731313843164,-500.0,0.00014795,2]
[341935937,1731313843175,-500.0,0.00014795,2]
[341935938,1731313843185,-500.0,0.00014795,2]
[341935939,1731313843195,-500.0,0.00014795,2]
[341935940,1731313843206,-500.0,0.00014795,2]
[341935941,1731313843216,-500.0,0.00014795,2]
[341935942,1731313843227,-319.3763063,0.00014795,2]
[341935943,1731313843239,-500.0,0.00014795,2]
[341935944,1731313843249,-500.0,0.00014795,2]
[341935945,1731313843259,-500.0,0.00014795,2]
[341935946,1731313843270,-500.0,0.00014795,2]
[341935947,1731313843281,-500.0,0.00014795,2]
[341935948,1731313843292,-500.0,0.00014795,2]
[341935949,1731313843302,-500.0,0.00014795,2]
[341935950,1731313843314,-599.01510714,0.00014795,2]
[341935951,1731313843324,-500.0,0.00014795,2]
[341935952,1731313843334,-500.0,0.00014795,2]
[341935953,1731313843344,-534.60325646,0.00014795,2]
[341935954,1731313843355,-500.0,0.00014795,2]
[341935955,1731313843365,-500.0,0.00014795,2]
[341935956,1731313843375,-544.32194557,0.00014795,2]
[341935957,1731313843386,-500.0,0.00014795,2]
[341935958,1731313843396,-1000.0,0.00014795,2]
[341935959,1731313843407,-485.03310457,0.00014795,2]
[341935960,1731313843417,-1000.0,0.00014795,2]
[341935961,1731313843428,-1000.0,0.00014795,2]
[341935962,1731313843438,-1000.0,0.00014795,2]
[341935963,1731313843449,-1000.0,0.00014795,2]
[341935964,1731313843460,-584.62,0.00014795,2]
[341935965,1731313843470,-500.0,0.00014795,2]
[341935966,1731313843480,-556.41353374,0.00014795,2]
[341935967,1731313843491,-500.0,0.00014795,2]
[341935968,1731313843502,-633.76,0.00014795,2]
[341935969,1731313843512,-500.0,0.00014795,2]
[341935970,1731313843523,-500.0,0.00014795,2]
[341935971,1731313843533,-500.0,0.00014795,2]
[341935972,1731313843544,-500.0,0.00014795,2]
[341935973,1731313843554,-500.0,0.00014795,2]
[341935974,1731313843565,-500.0,0.00014795,2]
[341935975,1731313843576,-500.0,0.00014795,2]
[341935976,1731313843587,-500.0,0.00014795,2]
[341935977,1731313843598,-500.0,0.00014795,2]
[341935978,1731313843608,-282.1375458,0.00014795,2]
[341935979,1731313843619,-509.68,0.00014795,2]
[341935980,1731313843630,-546.16,0.00014795,2]
[341935981,1731313843641,-505.51149822,0.00014795,2]
[341935982,1731313843651,-500.0,0.00014795,2]
[341935983,1731313843662,-500.0,0.00014795,2]
[341935984,1731313843673,-500.0,0.00014795,2]
[341935985,1731313843683,-500.0,0.00014795,2]
[341935987,1731313843694,-571.35863426,0.00014795,2]
[341935994,1731313843932,-500.0,0.00014795,2]
[341935995,1731313843943,-500.0,0.00014795,2]
[341935996,1731313843952,-615.3435227,0.00014795,2]
[341935997,1731313843963,-173.45,0.00014795,2]
[341935998,1731313843972,-529.34202825,0.00014795,2]
[341935999,1731313843982,-500.0,0.00014795,2]
[341936000,1731313843991,-500.0,0.00014795,2]
[341936001,1731313844000,-500.0,0.00014795,2]
[341936002,1731313844009,-500.0,0.00014795,2]
[341936003,1731313844019,-484.70365732,0.00014795,2]
[341936004,1731313844476,-500.0,0.00014794,2]
[341936005,1731313844485,-500.0,0.00014794,2]
[341936006,1731313844495,-15.29634268,0.00014795,2]
[341936007,1731313844504,-500.0,0.00014795,2]
[341936008,1731313844514,-500.0,0.00014795,2]
[341936009,1731313844523,-555.39991855,0.00014795,2]
[341936010,1731313844532,-500.0,0.00014795,2]
[341936011,1731313844542,-500.0,0.00014795,2]
[341936012,1731313844551,-500.0,0.00014795,2]
[341936013,1731313844561,-626.02,0.00014795,2]
[341936014,1731313844570,-500.0,0.00014795,2]
[341936015,1731313844579,-500.0,0.00014795,2]
[341936016,1731313844589,-500.0,0.00014795,2]
[341936017,1731313844599,-503.75196478,0.00014795,2]
[341936018,1731313844608,-500.0,0.00014795,2]
[341936019,1731313844617,-531.96,0.00014795,2]
[341936020,1731313844626,-500.0,0.00014795,2]
[341936021,1731313844636,-561.0,0.00014795,2]
[341936022,1731313844645,-500.0,0.00014795,2]
[341936023,1731313844654,-500.0,0.00014795,2]
[341936024,1731313844663,-500.0,0.00014795,2]
[341936025,1731313844672,-500.0,0.00014795,2]
[341936026,1731313844681,-500.0,0.00014795,2]
[341936027,1731313844691,-500.0,0.00014795,2]
[341936028,1731313844700,-500.0,0.00014795,2]
[341936029,1731313844711,-500.0,0.00014795,2]
[341936030,1731313844721,-500.0,0.00014795,2]
[341936031,1731313844730,-641.7,0.00014795,2]
[341936032,1731313844740,-500.0,0.00014795,2]
[341936033,1731313844750,-1000.0,0.00014795,2]
[341936034,1731313844759,-1000.0,0.00014795,2]
[341936035,1731313844769,-1000.0,0.00014795,2]
[341936036,1731313844778,-266.0,0.00014795,2]
[341936037,1731313844787,-501.8565892,0.00014796,2]
[341936038,1731313844797,-500.0,0.00014796,2]
[341936039,1731313844806,-500.0,0.00014796,2]
[341936040,1731313844816,-500.0,0.00014796,2]
[341936041,1731313844825,-501.87681418,0.00014796,2]
[341936042,1731313844834,-500.0,0.00014796,2]
[341936043,1731313844844,-500.0,0.00014796,2]
[341936044,1731313844854,-500.38971895,0.00014796,2]
[341936045,1731313844864,-501.20625649,0.00014796,2]
[341936046,1731313844874,-501.51297422,0.00014796,2]
[341936047,1731313844883,-500.0,0.00014796,2]
[341936048,1731313844893,-500.0,0.00014796,2]
[341936049,1731313844903,-351.3995782,0.00014796,2]
[341936050,1731313844912,-500.0,0.00014796,2]
[341936051,1731313844921,-500.73151564,0.00014796,2]
[341936052,1731313844930,-500.0,0.00014796,2]
[341936053,1731313844939,-500.0,0.00014796,2]
[341936054,1731313844949,-500.0,0.00014796,2]
[341936055,1731313844958,-530.787558,0.00014796,2]
[341936056,1731313844967,-505.41601609,0.00014796,2]
[341936057,1731313844977,-500.7866886,0.00014796,2]
[341936058,1731313844986,-502.6953771,0.00014796,2]
[341936059,1731313844996,-500.0,0.00014796,2]
[341936060,1731313845005,-367.94175612,0.00014796,2]
[341936061,1731313845015,-500.0,0.00014796,2]
[341936062,1731313845024,-500.0,0.00014796,2]
[341936063,1731313845033,-177.15375328,0.00014796,2]
[341936064,1731313845047,-509.14963332,0.00014796,2]
[341936065,1731313845056,-500.0,0.00014796,2]
[341936066,1731313845065,-500.0,0.00014796,2]
[341936067,1731313845074,-500.0,0.00014796,2]
[341936068,1731313845083,-500.0,0.00014796,2]
[341936069,1731313845093,-301.57458584,0.00014796,2]
[341936070,1731313845102,-500.0,0.00014796,2]
[341936071,1731313845111,-503.86910965,0.00014796,2]
[341936072,1731313845119,-500.0,0.00014796,2]
[341936073,1731313845128,-503.43562346,0.00014796,2]
[341936074,1731313845137,-500.0,0.00014796,2]
[341936075,1731313845147,-279.33987864,0.00014796,2]
[341936076,1731313845156,-501.20309191,0.00014796,2]
[341936077,1731313845166,-500.0,0.00014796,2]
[341936078,1731313845176,-195.31596652,0.00014796,2]
[341936079,1731313845185,-307.50703828,0.00014796,2]
[341936080,1731313845195,-500.0,0.00014796,2]
[341936081,1731313845204,-207.43689019,0.00014796,2]
[341936082,1731313845215,-502.832715,0.00014796,2]
[341936083,1731313845224,-500.0,0.00014796,2]
[341936084,1731313845235,-500.0,0.00014796,2]
[341936085,1731313845246,-205.78,0.00014796,2]
[341936086,1731313845255,-511.0736457,0.00014796,2]
[341936087,1731313845265,-500.0,0.00014796,2]
[341936088,1731313845274,-500.0,0.00014796,2]
[341936089,1731313845284,-416.81488695,0.00014796,2]
[341936090,1731313845294,-500.0,0.00014796,2]
[341936091,1731313845303,-500.0,0.00014796,2]
[341936092,1731313845313,-500.0,0.00014796,2]
[341936093,1731313845323,-544.98,0.00014796,2]
[341936094,1731313845331,-500.0,0.00014796,2]
[341936095,1731313845341,-500.0,0.00014796,2]
[341936096,1731313845350,-540.73,0.00014796,2]
[341936097,1731313845360,-500.0,0.00014796,2]
[341936098,1731313845369,-471.54338857,0.00014796,2]
[341936099,1731313845379,-500.0,0.00014796,2]
[341936100,1731313845389,-519.93,0.00014797,2]
[341936101,1731313845399,-500.0,0.00014797,2]
[341936102,1731313845408,-535.33,0.00014797,2]
[341936103,1731313845418,-500.0,0.00014797,2]
[341936104,1731313845427,-500.0,0.00014797,2]
[341936105,1731313845437,-500.0,0.00014797,2]
[341936106,1731313845447,-500.0,0.00014797,2]
[341936107,1731313845456,-500.0,0.00014797,2]
[341936108,1731313845469,-500.0,0.00014797,2]
[341936109,1731313845479,-307.89,0.00014797,2]
[341936110,1731313845488,-500.0,0.00014797,2]
[341936111,1731313845498,-500.0,0.00014797,2]
[341936112,1731313845507,-413.23,0.00014797,2]
[341936113,1731313845517,-160.19,0.00014797,2]
[341936114,1731313845527,-500.0,0.00014797,2]
[341936115,1731313845537,-500.0,0.00014797,2]
[341936116,1731313845547,-500.0,0.00014797,2]
[341936117,1731313845556,-355.02,0.00014797,2]
[341936118,1731313845566,-500.0,0.00014797,2]
[341936119,1731313845576,-356.79,0.00014797,2]
[341936120,1731313845586,-500.0,0.00014797,2]
[341936121,1731313845596,-307.49,0.00014797,2]
[341936122,1731313845606,-500.0,0.00014797,2]
[341936123,1731313845616,-500.0,0.00014797,2]
[341936124,1731313845626,-500.0,0.00014797,2]
[341936125,1731313845635,-500.0,0.00014797,2]
[341936126,1731313845646,-500.0,0.00014797,2]
[341936127,1731313845655,-341.91386057,0.00014797,2]
[341936128,1731313845665,-500.0,0.00014797,2]
[341936129,1731313845675,-500.0,0.00014798,2]
[341936130,1731313845685,-500.0,0.00014798,2]
[341936131,1731313845695,-501.84838336,0.00014798,2]
[341936132,1731313845706,-500.0,0.00014798,2]
[341936133,1731313845717,-510.7010476,0.00014798,2]
[341936134,1731313845727,-511.56783682,0.00014798,2]
[341936135,1731313845736,-492.46287457,0.00014798,2]
[341936136,1731313845746,-500.0,0.00014798,2]
[341936138,1731313845755,-500.0,0.00014798,2]
[341936140,1731313845766,-199.34211831,0.00014798,2]
[341936141,1731313845776,-570.06772124,0.00014798,2]
[341936142,1731313845786,-250.0,0.00014798,2]
[341936143,1731313845796,-510.50556735,0.00014798,2]
[341936144,1731313845806,-505.26156168,0.00014798,2]
[341936145,1731313845816,-503.89102678,0.00014798,2]
[341936147,1731313845827,-505.76585066,0.00014798,2]
[341936149,1731313845837,-720.1,0.00014798,2]
[341936151,1731313845847,-500.0,0.00014798,2]
[341936152,1731313845856,-500.0,0.00014798,2]
[341936153,1731313845867,-510.78210223,0.00014798,2]
[341936154,1731313845876,-502.3920438,0.00014798,2]
[341936155,1731313845886,-500.0,0.00014798,2]
[341936156,1731313845895,-502.23221225,0.00014798,2]
[341936157,1731313845905,-500.0,0.00014798,2]
[341936158,1731313845915,-504.36750002,0.00014798,2]
[341936159,1731313845925,-500.0,0.00014798,2]
[341936160,1731313845935,-500.0,0.00014798,2]
[341936161,1731313845946,-500.0,0.00014798,2]
[341936162,1731313845956,-500.0,0.00014798,2]
[341936163,1731313845969,-500.0,0.00014798,2]
[341936164,1731313845979,-503.72291772,0.00014798,2]
[341936165,1731313845989,-505.93261058,0.00014798,2]
[341936166,1731313846000,-517.52141277,0.00014798,2]
[341936167,1731313846010,-502.39409997,0.00014798,2]
[341936168,1731313846020,-500.0,0.00014798,2]
[341936169,1731313846030,-502.12071247,0.00014798,2]
[341936170,1731313846040,-500.0,0.00014798,2]
[341936171,1731313846050,-500.0,0.00014798,2]
[341936172,1731313846060,-496.5,0.00014798,2]
[341936173,1731313846070,-500.0,0.00014798,2]
[341936174,1731313846080,-500.0,0.00014798,2]
[341936175,1731313846091,-500.0,0.00014798,2]
[341936176,1731313846101,-500.0,0.00014798,2]
[341936177,1731313846111,-500.0,0.00014798,2]
[341936178,1731313846121,-500.0,0.00014798,2]
[341936179,1731313846131,-500.0,0.00014798,2]
[341936180,1731313846142,-500.0,0.00014798,2]
[341936181,1731313846153,-500.0,0.00014798,2]
[341936182,1731313846164,-500.0,0.00014798,2]
[341936183,1731313846175,-500.0,0.00014798,2]
[341936184,1731313846186,-500.0,0.00014798,2]
[341936185,1731313846196,-500.0,0.00014798,2]
[341936186,1731313846207,-500.0,0.00014798,2]
[341936187,1731313846219,-500.0,0.00014798,2]
[341936188,1731313846230,-500.0,0.00014798,2]
[341936189,1731313846243,-500.0,0.00014798,2]
[341936190,1731313846254,-518.95229602,0.00014798,2]
[341936191,1731313846264,-500.0,0.00014798,2]
[341936192,1731313846276,-500.0,0.00014798,2]
[341936193,1731313846286,-500.0,0.00014798,2]
[341936194,1731313846297,-500.0,0.00014798,2]
[341936195,1731313846308,-500.0,0.00014798,2]
[341936196,1731313846319,-643.30689439,0.00014798,2]
[341936197,1731313846330,-500.0,0.00014798,2]
[341936198,1731313846340,-500.0,0.00014798,2]
[341936199,1731313846351,-500.0,0.00014798,2]
[341936200,1731313846361,-500.0,0.00014798,2]
[341936201,1731313846371,-500.0,0.00014798,2]
[341936202,1731313846381,-500.0,0.00014798,2]
[341936203,1731313846390,-500.0,0.00014798,2]
[341936204,1731313846401,-500.0,0.00014798,2]
[341936205,1731313846412,-500.0,0.00014798,2]
[341936206,1731313846422,-500.0,0.00014798,2]
[341936207,1731313846432,-500.0,0.00014798,2]
[341936208,1731313846442,-500.0,0.00014798,2]
[341936209,1731313846452,-500.0,0.00014798,2]
[341936210,1731313846463,-500.0,0.00014798,2]
[341936211,1731313846474,-500.0,0.00014798,2]
[341936212,1731313846484,-500.0,0.00014798,2]
[341936213,1731313846494,-500.0,0.00014798,2]
[341936214,1731313846504,-500.0,0.00014798,2]
[341936215,1731313846514,-500.0,0.00014798,2]
[341936216,1731313846525,-508.20050735,0.00014798,2]
[341936217,1731313846535,-500.0,0.00014798,2]
[341936218,1731313846544,-436.5370663,0.00014798,2]
[341936219,1731313846555,-500.0,0.00014798,2]
[341936220,1731313846565,-500.0,0.00014798,2]
[341936221,1731313846575,-500.0,0.00014798,2]
[341936222,1731313846585,-500.0,0.00014798,2]
[341936223,1731313846596,-500.0,0.00014798,2]
[341936224,1731313846606,-500.0,0.00014798,2]
[341936225,1731313846616,-500.0,0.00014798,2]
[341936226,1731313846626,-522.78412302,0.00014798,2]
[341936227,1731313846635,-500.0,0.00014798,2]
[341936228,1731313846646,-500.0,0.00014798,2]
[341936229,1731313846656,-500.0,0.00014798,2]
[341936230,1731313846666,-500.0,0.00014798,2]
[341936231,1731313846676,-500.0,0.00014798,2]
[341936232,1731313846686,-500.0,0.00014798,2]
[341936233,1731313846696,-500.0,0.00014798,2]
[341936234,1731313846706,-282.72379575,0.00014798,2]
[341936235,1731313846717,-500.0,0.00014798,2]
[341936236,1731313846728,-500.0,0.00014798,2]
[341936237,1731313846737,-571.62755008,0.00014798,2]
[341936238,1731313846747,-166.99448453,0.00014798,2]
[341936239,1731313846757,-500.0,0.00014798,2]
[341936240,1731313846768,-493.49561297,0.00014798,2]
[341936241,1731313846779,-512.10750074,0.00014798,2]
[341936242,1731313846788,-535.46108489,0.00014798,2]
[341936243,1731313846799,-500.0,0.00014798,2]
[341936244,1731313846810,-500.0,0.00014798,2]
[341936245,1731313846820,-500.0,0.00014798,2]
[341936246,1731313846830,-500.0,0.00014798,2]
[341936247,1731313846840,-504.19622232,0.00014798,2]
[341936248,1731313846850,-510.41446795,0.00014798,2]
[341936249,1731313846860,-500.0,0.00014798,2]
[341936250,1731313846870,-500.0,0.00014798,2]
[341936251,1731313846880,-500.0,0.00014798,2]
[341936252,1731313846890,-500.0,0.00014798,2]
[341936253,1731313846899,-500.0,0.00014798,2]
[341936254,1731313846909,-500.0,0.00014798,2]
[341936255,1731313846919,-500.0,0.00014798,2]
[341936256,1731313846929,-504.71886744,0.00014798,2]
[341936257,1731313846938,-500.0,0.00014798,2]
[341936258,1731313846949,-437.7058659,0.00014798,2]
[341936259,1731313846958,-500.0,0.00014798,2]
[341936260,1731313846968,-500.0,0.00014798,2]
[341936261,1731313846978,-500.0,0.00014798,2]
[341936262,1731313846988,-190.29151567,0.00014798,2]
[341936263,1731313846998,-500.0,0.00014798,2]
[341936264,1731313847009,-311.39297153,0.00014798,2]
[341936265,1731313847019,-511.38,0.00014798,2]
[341936266,1731313847169,-500.0,0.00014798,2]
[341936267,1731313847178,-500.0,0.00014798,2]
[341936268,1731313847188,-587.91616368,0.00014798,2]
[341936269,1731313847197,-500.0,0.00014798,2]
[341936270,1731313847206,-500.0,0.00014798,2]
[341936271,1731313847220,-507.53734039,0.00014798,2]
[341936272,1731313847229,-500.0,0.00014798,2]
[341936273,1731313847242,-533.24908283,0.00014798,2]
[341936274,1731313847252,-612.04,0.00014798,2]
[341936275,1731313847262,-526.31688945,0.00014798,2]
[341936276,1731313847272,-500.0,0.00014798,2]
[341936277,1731313847284,-500.0,0.00014798,2]
[341936278,1731313847293,-500.0,0.00014798,2]
[341936279,1731313847303,-500.0,0.00014798,2]
[341936280,1731313847320,-619.92,0.00014798,2]
[341936281,1731313847329,-179.19,0.00014798,2]
[341936282,1731313847340,-612.10822113,0.00014798,2]
[341936283,1731313847350,-320.53620615,0.00014798,2]
[341936284,1731313847360,-502.74358003,0.00014798,2]
[341936285,1731313847370,-503.05075187,0.00014798,2]
[341936286,1731313847380,-507.54713057,0.00014798,2]
[341936287,1731313847390,-500.0,0.00014798,2]
[341936288,1731313847400,-503.33382802,0.00014798,2]
[341936289,1731313847411,-500.0,0.00014798,2]
[341936290,1731313847421,-500.0,0.00014798,2]
[341936291,1731313847431,-473.51758678,0.00014798,2]
[341936292,1731313847440,-505.81462795,0.00014798,2]
[341936293,1731313847450,-500.0,0.00014798,2]
[341936294,1731313847459,-500.0,0.00014798,2]
[341936295,1731313847471,-504.05642347,0.00014798,2]
[341936296,1731313847480,-500.0,0.00014798,2]
[341936297,1731313847490,-500.0,0.00014798,2]
[341936298,1731313847499,-500.0,0.00014798,2]
[341936299,1731313847509,-356.18334951,0.00014798,2]
[341936300,1731313847520,-507.4211694,0.00014798,2]
[341936301,1731313847529,-507.55637834,0.00014798,2]
[341936302,1731313847538,-506.59803275,0.00014798,2]
[341936303,1731313847548,-505.51542312,0.00014798,2]
[341936304,1731313847557,-500.0,0.00014798,2]
[341936305,1731313847567,-582.88846231,0.00014798,2]
[341936306,1731313847576,-500.0,0.00014798,2]
[341936307,1731313847586,-500.0,0.00014798,2]
[341936308,1731313847595,-500.0,0.00014798,2]
[341936309,1731313847604,-500.0,0.00014798,2]
[341936310,1731313847614,-500.0,0.00014798,2]
[341936311,1731313847623,-500.0,0.00014798,2]
[341936312,1731313847632,-505.25661635,0.00014798,2]
[341936313,1731313847642,-540.73,0.00014798,2]
[341936314,1731313847651,-232.22786553,0.00014798,2]
[341936315,1731313847660,-540.73,0.00014798,2]
[341936316,1731313847670,-505.01756824,0.00014798,2]
[341936317,1731313847680,-500.0,0.00014798,2]
[341936318,1731313847689,-502.82819437,0.00014798,2]
[341936319,1731313847699,-505.70128739,0.00014798,2]
[341936320,1731313847709,-500.0,0.00014798,2]
[341936321,1731313847720,-504.18523792,0.00014798,2]
[341936322,1731313847729,-618.68919583,0.00014798,2]
[341936323,1731313847739,-569.38,0.00014798,2]
[341936324,1731313847749,-500.0,0.00014798,2]
[341936325,1731313847758,-500.0,0.00014798,2]
[341936326,1731313847768,-500.0,0.00014798,2]
[341936327,1731313847778,-500.0,0.00014798,2]
[341936328,1731313847788,-500.0,0.00014798,2]
[341936329,1731313847798,-500.0,0.00014798,2]
[341936330,1731313847808,-500.0,0.00014798,2]
[341936331,1731313847818,-500.0,0.00014798,2]
[341936332,1731313847827,-500.0,0.00014798,2]
[341936333,1731313847837,-500.0,0.00014798,2]
[341936334,1731313847846,-511.53954898,0.00014798,2]
[341936335,1731313847856,-504.75451563,0.00014798,2]
[341936336,1731313847865,-195.65999446,0.00014798,2]
[341936337,1731313847875,-604.47051982,0.00014798,2]
[341936338,1731313847884,-500.0,0.00014798,2]
[341936339,1731313847894,-509.50253329,0.00014798,2]
[341936340,1731313847903,-560.95213675,0.00014798,2]
[341936341,1731313847913,-500.0,0.00014798,2]
[341936342,1731313847922,-501.72262661,0.00014798,2]
[341936343,1731313847931,-563.453652,0.00014798,2]
[341936344,1731313847940,-547.83614214,0.00014798,2]
[341936345,1731313847950,-500.0,0.00014798,2]
[341936346,1731313847959,-485.52859535,0.00014798,2]
[341936347,1731313847969,-500.0,0.00014798,2]
[341936348,1731313847979,-500.0,0.00014798,2]
[341936349,1731313847988,-430.55,0.00014798,2]
[341936350,1731313847997,-212.69493174,0.00014798,2]
[341936351,1731313848006,-506.7858685,0.00014798,2]
[341936352,1731313848015,-500.0,0.00014798,2]
[341936353,1731313848025,-500.0,0.00014798,2]
[341936354,1731313848034,-500.0,0.00014798,2]
[341936355,1731313848043,-500.0,0.00014798,2]
[341936356,1731313848053,-500.0,0.00014798,2]
[341936357,1731313848062,-509.66480354,0.00014798,2]
[341936358,1731313848072,-500.0,0.00014798,2]
[341936359,1731313848081,-590.39389931,0.00014798,2]
[341936360,1731313848090,-506.89971001,0.00014798,2]
[341936361,1731313848100,-500.0,0.00014798,2]
[341936362,1731313848109,-500.0,0.00014798,2]
[341936363,1731313848118,-536.97,0.00014798,2]
[341936364,1731313848127,-500.0,0.00014798,2]
[341936365,1731313848136,-527.83,0.00014798,2]
[341936366,1731313848145,-500.0,0.00014798,2]
[341936367,1731313848155,-397.91,0.00014798,2]
[341936368,1731313848164,-500.0,0.00014798,2]
[341936369,1731313848174,-500.0,0.00014798,2]
[341936370,1731313848182,-500.0,0.00014798,2]
[341936371,1731313848191,-500.0,0.00014798,2]
[341936372,1731313848201,-500.0,0.00014798,2]
[341936373,1731313848210,-495.63,0.00014798,2]
[341936374,1731313848220,-226.43,0.00014798,2]
[341936375,1731313848230,-500.0,0.00014798,2]
[341936376,1731313848241,-504.50704597,0.00014798,2]
[341936377,1731313848250,-293.72,0.00014798,2]
[341936378,1731313848259,-503.71496201,0.00014798,2]
[341936379,1731313848269,-569.73870492,0.00014798,2]
[341936380,1731313848279,-500.0,0.00014798,2]
[341936381,1731313848288,-209.56846,0.00014798,2]
[341936382,1731313848297,-500.0,0.00014798,2]
[341936383,1731313848306,-504.15389187,0.00014798,2]
[341936384,1731313848315,-500.0,0.00014798,2]
[341936385,1731313848326,-500.0,0.00014798,2]
[341936386,1731313848336,-500.0,0.00014798,2]
[341936387,1731313848345,-500.0,0.00014798,2]
[341936388,1731313848355,-500.0,0.00014798,2]
[341936389,1731313848364,-650.53,0.00014798,2]
[341936390,1731313848373,-500.0,0.00014798,2]
[341936391,1731313848382,-500.0,0.00014798,2]
[341936392,1731313848391,-500.0,0.00014798,2]
[341936393,1731313848401,-500.0,0.00014798,2]
[341936394,1731313848410,-443.58,0.00014798,2]
[341936395,1731313848421,-500.0,0.00014798,2]
[341936396,1731313848430,-416.07,0.00014798,2]
[341936397,1731313848439,-500.0,0.00014798,2]
[341936398,1731313848448,-448.35,0.00014798,2]
[341936399,1731313848458,-443.937503,0.00014798,2]
[341936400,1731313848468,-500.0,0.00014798,2]
[341936401,1731313848478,-533.85,0.00014798,2]
[341936402,1731313848487,-500.0,0.00014798,2]
[341936403,1731313848497,-500.0,0.00014798,2]
[341936404,1731313848506,-628.70899785,0.00014798,2]
[341936405,1731313848515,-503.04945163,0.00014798,2]
[341936406,1731313848525,-500.0,0.00014798,2]
[341936407,1731313848534,-500.0,0.00014798,2]
[341936408,1731313848543,-500.0,0.00014798,2]
[341936409,1731313848551,-612.82917301,0.00014798,2]
[341936410,1731313848560,-500.0,0.00014798,2]
[341936411,1731313848569,-500.0,0.00014798,2]
[341936412,1731313848579,-500.0,0.00014798,2]
[341936413,1731313848588,-500.0,0.00014798,2]
[341936414,1731313848598,-500.0,0.00014798,2]
[341936415,1731313848607,-503.04470297,0.00014798,2]
[341936416,1731313848617,-502.35562501,0.00014798,2]
[341936417,1731313848626,-500.0,0.00014798,2]
[341936418,1731313848636,-500.0,0.00014798,2]
[341936419,1731313848646,-501.79860742,0.00014798,2]
[341936420,1731313848655,-500.0,0.00014798,2]
[341936421,1731313848665,-500.0,0.00014798,2]
[341936422,1731313848675,-180.34,0.00014798,2]
[341936423,1731313848685,-245.9,0.00014798,2]
[341936424,1731313848695,-500.0,0.00014798,2]
[341936425,1731313848704,-502.2898281,0.00014798,2]
[341936426,1731313848715,-500.0,0.00014798,2]
[341936427,1731313848724,-608.93431362,0.00014798,2]
[341936428,1731313848734,-504.1672904,0.00014798,2]
[341936429,1731313848743,-500.0,0.00014798,2]
[341936430,1731313848752,-501.29328561,0.00014798,2]
[341936431,1731313848762,-500.0,0.00014798,2]
[341936432,1731313848771,-502.76502055,0.00014798,2]
[341936433,1731313848780,-278.6,0.00014798,2]
[341936434,1731313848790,-500.0,0.00014798,2]
[341936435,1731313848799,-500.0,0.00014798,2]
[341936436,1731313848809,-500.0,0.00014798,2]
[341936437,1731313848818,-500.0,0.00014798,2]
[341936438,1731313848827,-322.45098797,0.00014798,2]
[341936439,1731313848836,-604.03,0.00014798,2]
[341936440,1731313848845,-503.85475827,0.00014798,2]
[341936441,1731313848854,-518.23985445,0.00014798,2]
[341936442,1731313848863,-607.23179667,0.00014798,2]
[341936443,1731313848872,-577.15184113,0.00014798,2]
[341936444,1731313848882,-289.32,0.00014798,2]
[341936445,1731313848891,-504.1658188,0.00014798,2]
[341936446,1731313848900,-500.0,0.00014798,2]